fUST/lending_fUST_20250812
["ID","MTS","AMOUNT","RATE_DAILY","PERIOD"]
[378680121,1754957443259,-460.0,0.00019177,2]
[378680122,1754957443270,-460.0,0.00019177,2]
[378680123,1754957443279,-460.0,0.00019177,2]
[378680124,1754957443288,-460.0,0.00019177,2]
[378680125,1754957443298,-1935.65,0.00019177,2]
[378680126,1754957443308,-2036.44,0.00019177,2]
[378680127,1754957443317,-481.87,0.00019177,2]
[378680128,1754957443327,-460.0,0.00019177,2]
[378680129,1754957443336,-460.0,0.00019177,2]
[378680130,1754957443346,-460.0,0.00019177,2]
[378680131,1754957443355,-822.07,0.00019177,2]
[378680132,1754957443365,-460.0,0.00019177,2]
[378680133,1754957443375,-838.35,0.00019177,2]
[378680134,1754957443385,-460.0,0.00019177,2]
[378680135,1754957443394,-3047.25,0.00019177,2]
[378680136,1754957443405,-483.47,0.00019177,2]
[378680137,1754957443415,-460.0,0.00019177,2]
[378680138,1754957443425,-460.0,0.00019177,2]
[378680139,1754957443435,-460.0,0.00019177,2]
[378680140,1754957443445,-460.0,0.00019177,2]
[378680141,1754957443455,-460.0,0.00019177,2]
[378680142,1754957443465,-581.67,0.00019177,2]
[378680144,1754957443479,-555.92,0.00019177,2]
[378680145,1754957443489,-558.9,0.00019177,2]
[378680146,1754957443498,-489.1,0.00019177,2]
[378680147,1754957443508,-460.0,0.00019177,2]
[378680148,1754957443518,-460.0,0.00019177,2]
[378680149,1754957443527,-683.2,0.00019177,2]
[378680150,1754957443537,-1239.25,0.00019177,2]
[378680151,1754957443547,-460.0,0.00019177,2]
[378680152,1754957443558,-3746.54,0.00019177,2]
[378680153,1754957443567,-460.0,0.00019177,2]
[378680154,1754957443577,-1573.64,0.00019177,2]
[378680155,1754957443586,-460.0,0.00019177,2]
[378680156,1754957443596,-460.0,0.00019177,2]
[378680157,1754957443606,-460.0,0.00019177,2]
[378680158,1754957443615,-460.0,0.00019177,2]
[378680159,1754957443625,-460.0,0.00019177,2]
[378680160,1754957443634,-460.0,0.00019177,2]
[378680161,1754957443643,-460.0,0.00019177,2]
[378680162,1754957443653,-1846.89,0.00019177,2]
[378680163,1754957443662,-903.29,0.00019177,2]
[378680164,1754957443672,-460.0,0.00019177,2]
[378680165,1754957443682,-460.0,0.00019177,2]
[378680166,1754957443691,-460.0,0.00019177,2]
[378680167,1754957443700,-460.0,0.00019177,2]
[378680168,1754957443710,-1000.0,0.00019177,2]
[378680169,1754957443719,-460.0,0.00019177,2]
[378680170,1754957443729,-460.0,0.00019177,2]
[378680171,1754957443738,-460.0,0.00019177,2]
[378680172,1754957443748,-460.0,0.00019177,2]
[378680173,1754957443757,-460.0,0.00019177,2]
[378680174,1754957443767,-460.0,0.00019177,2]
[378680175,1754957443776,-460.0,0.00019177,2]
[378680176,1754957443786,-543.24,0.00019177,2]
[378680177,1754957443796,-460.0,0.00019177,2]
[378680179,1754957443806,-460.0,0.00019177,2]
[378680181,1754957443815,-460.0,0.00019177,2]
[378680183,1754957443825,-1204.31,0.00019177,2]
[378680185,1754957443834,-460.0,0.00019177,2]
[378680187,1754957443843,-1141.44,0.00019177,2]
[378680189,1754957443853,-460.0,0.00019177,2]
[378680191,1754957443862,-460.0,0.00019177,2]
[378680193,1754957443871,-460.0,0.00019177,2]
[378680195,1754957443880,-460.0,0.00019177,2]
[378680197,1754957443889,-460.0,0.00019177,2]
[378680199,1754957443898,-460.0,0.00019177,2]
[378680201,1754957443908,-460.0,0.00019177,2]
[378680203,1754957443917,-492.11,0.00019177,2]
[378680205,1754957443926,-460.0,0.00019177,2]
[378680207,1754957443935,-460.0,0.00019177,2]
[378680209,1754957443945,-460.0,0.00019177,2]
[378680211,1754957443954,-460.0,0.00019177,2]
[378680213,1754957443963,-3926.42,0.00019177,2]
[378680214,1754957443973,-460.0,0.00019177,2]
[378680215,1754957443982,-460.0,0.00019178,2]
[378680217,1754957443991,-460.0,0.00019178,2]
[378680218,1754957444001,-460.0,0.00019178,2]
[378680219,1754957444010,-460.0,0.00019178,2]
[378680220,1754957444019,-460.0,0.00019178,2]
[378680221,1754957444030,-460.0,0.00019178,2]
[378680222,1754957444039,-460.0,0.00019178,2]
[378680223,1754957444048,-460.0,0.00019178,2]
[378680224,1754957444058,-460.0,0.00019178,2]
[378680225,1754957444067,-460.0,0.00019178,2]
[378680227,1754957444076,-460.0,0.00019178,2]
[378680229,1754957444085,-477.02278304,0.00019178,2]
[378680231,1754957444095,-460.0,0.00019178,2]
[378680233,1754957444104,-229.22483265,0.00019178,2]
[378680235,1754957444115,-460.0,0.00019178,2]
[378680237,1754957444124,-460.0,0.00019178,2]
[378680239,1754957444134,-460.0,0.00019178,2]
[378680241,1754957444144,-460.0,0.00019178,2]
[378680243,1754957444153,-460.0,0.00019178,2]
[378680245,1754957444162,-460.0,0.00019178,2]
[378680247,1754957444172,-460.0,0.00019178,2]
[378680249,1754957444181,-460.0,0.00019178,2]
[378680251,1754957444191,-544.56,0.00019178,2]
[378680253,1754957444200,-460.0,0.00019178,2]
[378680255,1754957444210,-460.0,0.00019178,2]
[378680257,1754957444219,-460.0,0.00019178,2]
[378680259,1754957444228,-460.0,0.00019178,2]
[378680261,1754957444238,-460.0,0.00019178,2]
[378680263,1754957444248,-357.05511494,0.00019178,2]
[378680265,1754957444258,-460.0,0.00019178,2]
[378680267,1754957444267,-482.28639257,0.00019178,2]
[378680269,1754957444277,-500.0,0.00019178,2]
[378680271,1754957444287,-460.0,0.00019178,2]
[378680273,1754957444296,-522.72509993,0.00019178,2]
[378680275,1754957444306,-460.0,0.00019178,2]
[378680277,1754957444316,-460.0,0.00019178,2]
[378680279,1754957444326,-460.0,0.00019178,2]
[378680281,1754957444335,-460.0,0.00019178,2]
[378680283,1754957444344,-460.0,0.00019178,2]
[378680285,1754957444353,-569.87475365,0.00019178,2]
[378680287,1754957444363,-460.0,0.00019178,2]
[378680290,1754957444380,-460.0,0.00019178,2]
[378680292,1754957444392,-467.29904304,0.00019178,2]
[378680294,1754957444401,-460.0,0.00019178,2]
[378680296,1754957444411,-460.0,0.00019178,2]
[378680298,1754957444420,-460.0,0.00019178,2]
[378680301,1754957444430,-460.0,0.00019178,2]
[378680303,1754957444439,-460.0,0.00019178,2]
[378680305,1754957444448,-460.0,0.00019178,2]
[378680307,1754957444459,-460.0,0.00019178,2]
[378680309,1754957444468,-494.01,0.00019178,2]
[378680311,1754957444481,-460.0,0.00019178,2]
[378680313,1754957444491,-460.0,0.00019178,2]
[378680315,1754957444500,-460.0,0.00019178,2]
[378680317,1754957444510,-460.0,0.00019178,2]
[378680319,1754957444521,-1021.51,0.00019178,2]
[378680321,1754957444530,-460.0,0.00019178,2]
[378680323,1754957444540,-460.0,0.00019178,2]
[378680325,1754957444550,-461.68189417,0.00019178,2]
[378680327,1754957444560,-460.0,0.00019178,2]
[378680329,1754957444569,-460.0,0.00019178,2]
[378680342,1754957444684,-460.0,0.00019178,2]
[378680344,1754957444693,-460.0,0.00019178,2]
[378680346,1754957444703,-460.0,0.00019178,2]
[378680348,1754957444712,-1024.57,0.00019178,2]
[378680350,1754957444721,-460.0,0.00019178,2]
[378680352,1754957444730,-460.0,0.00019178,2]
[378680354,1754957444739,-460.0,0.00019178,2]
[378680356,1754957444748,-460.0,0.00019178,2]
[378680358,1754957444757,-460.0,0.00019178,2]
[378680360,1754957444766,-460.0,0.00019178,2]
[378680362,1754957444775,-460.0,0.00019178,2]
[378680364,1754957444784,-460.0,0.00019178,2]
[378680366,1754957444794,-4416.19,0.00019178,2]
[378680368,1754957444803,-460.0,0.00019178,2]
[378680370,1754957444812,-460.0,0.00019178,2]
[378680372,1754957444821,-579.74,0.00019178,2]
[378680374,1754957444832,-460.0,0.00019178,2]
[378680376,1754957444842,-701.25,0.00019178,2]
[378680378,1754957444852,-460.0,0.00019178,2]
[378680380,1754957444861,-501.0,0.00019178,2]
[378680382,1754957444871,-500.0,0.00019178,2]
[378680384,1754957444880,-666.0,0.00019178,2]
[378680386,1754957444889,-305.2,0.00019293,2]
[378680388,1754957444899,-305.2,0.00019433,2]
[378680390,1754957444909,-460.0,0.0001945,2]
[378680392,1754957444918,-465.74591987,0.0001945,2]
[378680394,1754957444927,-2447.11,0.0001945,2]
[378680396,1754957444937,-1207.79,0.0001945,2]
[378680398,1754957444946,-511.47,0.0001945,2]
[378680400,1754957444955,-460.0,0.0001945,2]
[378680402,1754957444964,-460.0,0.0001945,2]
[378680404,1754957444974,-5037.1,0.0001945,2]
[378680406,1754957444983,-460.0,0.0001945,2]
[378680408,1754957444994,-460.0,0.0001945,2]
[378680410,1754957445003,-911.56,0.0001945,2]
[378680411,1754957445013,-460.0,0.0001945,2]
[378680412,1754957445022,-460.0,0.0001945,2]
[378680413,1754957445031,-460.0,0.0001945,2]
[378680414,1754957445041,-4237.07,0.0001945,2]
[378680415,1754957445051,-690.62,0.0001945,2]
[378680416,1754957445060,-1292.5,0.0001945,2]
[378680417,1754957445069,-794.32,0.0001945,2]
[378680418,1754957445079,-2422.71,0.0001945,2]
[378680419,1754957445088,-460.0,0.0001945,2]
[378680420,1754957445098,-460.0,0.0001945,2]
[378680421,1754957445108,-1291.66,0.0001945,2]
[378680422,1754957445117,-5922.11,0.0001945,2]
[378680423,1754957445126,-358.71105646,0.0001945,2]
[378680424,1754957445135,-1007.91,0.0001945,2]
[378680425,1754957445145,-460.0,0.0001945,2]
[378680426,1754957445154,-1439.29,0.0001945,2]
[378680427,1754957445163,-460.0,0.0001945,2]
[378680428,1754957445173,-460.0,0.0001945,2]
[378680429,1754957445182,-635.85,0.0001945,2]
[378680430,1754957445191,-460.0,0.0001945,2]
[378680431,1754957445201,-460.0,0.00019451,2]
[378680432,1754957445210,-406.07562561,0.00019451,2]
[378680433,1754957445219,-784.91,0.00019451,2]
[378680434,1754957445233,-460.0,0.00019451,2]
[378680435,1754957445251,-460.0,0.00019451,2]
[378680436,1754957445266,-3005.17,0.00019451,2]
[378680437,1754957445276,-392.74432696,0.00019451,2]
[378680438,1754957445285,-460.0,0.00019451,2]
[378680439,1754957445295,-575.34,0.00019451,2]
[378680440,1754957445317,-799.57,0.00019451,2]
[378680441,1754957445331,-460.0,0.00019451,2]
[378680442,1754957445340,-464.20244395,0.00019451,2]
[378680443,1754957445351,-460.0,0.00019451,2]
[378680444,1754957445360,-3628.54,0.00019451,2]
[378680445,1754957445369,-460.0,0.00019451,2]
[378680446,1754957445379,-583.37,0.00019451,2]
[378680447,1754957445388,-221.76112064,0.00019451,2]
[378680448,1754957445398,-460.0,0.00019451,2]
[378680449,1754957445407,-1089.47,0.00019451,2]
[378680450,1754957445417,-460.0,0.00019451,2]
[378680451,1754957445427,-460.0,0.00019451,2]
[378680452,1754957445436,-460.0,0.00019451,2]
[378680453,1754957445445,-460.0,0.00019451,2]
[378680454,1754957445455,-460.0,0.00019451,2]
[378680455,1754957445464,-460.0,0.00019451,2]
[378680456,1754957445475,-460.0,0.00019451,2]
[378680457,1754957445485,-460.0,0.00019451,2]
[378680458,1754957445494,-460.0,0.00019451,2]
[378680459,1754957445504,-395.13834564,0.00019451,2]
[378680460,1754957445513,-460.0,0.00019451,2]
[378680461,1754957445524,-460.0,0.00019451,2]
[378680462,1754957445534,-460.0,0.00019451,2]
[378680463,1754957445543,-460.0,0.00019451,2]
[378680464,1754957445555,-460.0,0.00019451,2]
[378680465,1754957445565,-460.0,0.00019451,2]
[378680466,1754957445574,-460.0,0.00019451,2]
[378680467,1754957445583,-460.0,0.00019451,2]
[378680468,1754957445593,-556.88,0.00019451,2]
[378680469,1754957445604,-460.0,0.00019451,2]
[378680470,1754957445613,-460.0,0.00019451,2]
[378680471,1754957445623,-460.0,0.00019451,2]
[378680472,1754957445633,-460.0,0.00019451,2]
[378680473,1754957445643,-454.95354849,0.00019451,2]
[378680474,1754957445652,-460.0,0.00019451,2]
[378680475,1754957445665,-460.0,0.00019451,2]
[378680476,1754957445679,-460.0,0.00019451,2]
[378680477,1754957445688,-460.0,0.00019451,2]
[378680478,1754957445698,-460.0,0.00019451,2]
[378680479,1754957445708,-460.0,0.00019451,2]
[378680480,1754957445717,-460.0,0.00019451,2]
[378680481,1754957445726,-460.0,0.00019451,2]
[378680482,1754957445736,-460.0,0.00019451,2]
[378680483,1754957445746,-460.0,0.00019451,2]
[378680484,1754957445755,-460.0,0.00019451,2]
[378680485,1754957445764,-460.0,0.00019451,2]
[378680486,1754957445773,-460.0,0.00019451,2]
[378680487,1754957445783,-952.02,0.00019451,2]
[378680488,1754957445793,-460.0,0.00019451,2]
[378680489,1754957445802,-460.0,0.00019451,2]
[378680490,1754957445811,-434.9891292,0.00019451,2]
[378680491,1754957445820,-460.0,0.00019451,2]
[378680492,1754957445830,-1156.61,0.00019451,2]
[378680493,1754957445839,-978.47,0.00019451,2]
[378680494,1754957445850,-1147.86,0.00019451,2]
[378680495,1754957445859,-460.0,0.00019451,2]
[378680496,1754957445868,-460.0,0.00019451,2]
[378680497,1754957445878,-849.5,0.00019451,2]
[378680498,1754957445887,-460.0,0.00019451,2]
[378680499,1754957445896,-460.0,0.00019451,2]
[378680500,1754957445905,-721.47,0.00019451,2]
[378680501,1754957445914,-752.96,0.00019451,2]
[378680502,1754957445923,-460.0,0.00019451,2]
[378680503,1754957445933,-460.0,0.00019451,2]
[378680504,1754957445942,-460.0,0.00019451,2]
[378680505,1754957445951,-460.0,0.00019451,2]
[378680506,1754957445960,-460.0,0.00019451,2]
[378680507,1754957445968,-460.0,0.00019451,2]
[378680508,1754957445978,-460.0,0.00019451,2]
[378680509,1754957445987,-460.0,0.00019451,2]
[378680510,1754957445996,-460.0,0.00019451,2]
[378680511,1754957446005,-460.0,0.00019451,2]
[378680512,1754957446015,-472.0,0.00019451,2]
[378680513,1754957446025,-460.0,0.00019451,2]
[378680514,1754957446035,-460.0,0.00019451,2]
[378680515,1754957446044,-460.0,0.00019451,2]
[378680516,1754957446053,-460.0,0.00019451,2]
[378680517,1754957446063,-460.0,0.00019451,2]
[378680518,1754957446073,-460.0,0.00019451,2]
[378680519,1754957446082,-1621.74,0.00019451,2]
[378680520,1754957446092,-460.0,0.00019451,2]
[378680521,1754957446102,-966.34,0.00019451,2]
[378680522,1754957446112,-494.8,0.00019451,2]
[378680523,1754957446121,-460.0,0.00019451,2]
[378680524,1754957446131,-161.3641734,0.00019451,2]
[378680525,1754957446141,-300.21722509,0.00019451,2]
[378680526,1754957446151,-664.07,0.00019451,2]
[378680527,1754957446160,-528.82,0.00019451,2]
[378680528,1754957446170,-460.0,0.00019451,2]
[378680529,1754957446179,-557.98,0.00019451,2]
[378680530,1754957446190,-460.0,0.00019451,2]
[378680531,1754957446200,-558.99,0.00019451,2]
[378680532,1754957446209,-460.0,0.00019451,2]
[378680533,1754957446219,-460.0,0.00019451,2]
[378680534,1754957446228,-460.0,0.00019451,2]
[378680535,1754957446237,-460.0,0.00019451,2]
[378680536,1754957446247,-460.0,0.00019451,2]
[378680537,1754957446256,-460.0,0.00019451,2]
[378680538,1754957446266,-460.0,0.00019451,2]
[378680539,1754957446275,-189.30661163,0.00019451,2]
[378680540,1754957446285,-460.0,0.00019451,2]
[378680541,1754957446294,-460.0,0.00019451,2]
[378680542,1754957446303,-460.0,0.00019451,2]
[378680543,1754957446313,-460.0,0.00019451,2]
[378680544,1754957446322,-460.0,0.00019451,2]
[378680545,1754957446332,-460.0,0.00019451,2]
[378680547,1754957446341,-460.0,0.00019451,2]
[378680549,1754957446350,-460.0,0.00019451,2]
[378680550,1754957446359,-460.0,0.00019451,2]
[378680551,1754957446369,-1039.69,0.00019451,2]
[378680553,1754957446378,-460.0,0.00019451,2]
[378680555,1754957446387,-935.5,0.00019451,2]
[378680557,1754957446396,-460.0,0.00019451,2]
[378680558,1754957446405,-3378.29,0.00019451,2]
[378680559,1754957446415,-460.0,0.00019451,2]
[378680560,1754957446426,-3123.64,0.00019451,2]
[378680561,1754957446435,-460.0,0.00019451,2]
[378680562,1754957446445,-460.0,0.00019451,2]
[378680563,1754957446455,-460.0,0.00019451,2]
[378680564,1754957446464,-460.0,0.00019451,2]
[378680565,1754957446477,-460.0,0.00019451,2]
[378680566,1754957446489,-460.0,0.00019451,2]
[378680567,1754957446498,-460.0,0.00019451,2]
[378680568,1754957446508,-460.0,0.00019451,2]
[378680569,1754957446518,-460.0,0.00019451,2]
[378680570,1754957446528,-460.0,0.00019451,2]
[378680571,1754957446537,-541.16,0.00019451,2]
[378680572,1754957446547,-460.0,0.00019451,2]
[378680573,1754957446557,-460.0,0.00019451,2]
[378680574,1754957446567,-166.3383285,0.00019451,2]
[378680575,1754957446577,-460.0,0.00019451,2]
[378680577,1754957446586,-460.0,0.00019451,2]
[378680579,1754957446595,-460.0,0.00019451,2]
[378680581,1754957446608,-460.0,0.00019451,2]
[378680583,1754957446617,-460.0,0.00019451,2]
[378680585,1754957446627,-804.27,0.00019451,2]
[378680587,1754957446636,-460.0,0.00019451,2]
[378680589,1754957446646,-460.0,0.00019451,2]
[378680591,1754957446656,-460.0,0.00019451,2]
[378680593,1754957446665,-460.0,0.00019451,2]
[378680595,1754957446675,-460.0,0.00019451,2]
[378680597,1754957446685,-460.0,0.00019451,2]
[378680599,1754957446696,-460.0,0.00019451,2]
[378680601,1754957446706,-580.22694274,0.00019451,2]
[378680603,1754957446716,-460.0,0.00019451,2]
[378680605,1754957446726,-460.0,0.00019451,2]
[378680607,1754957446736,-1321.65,0.00019451,2]
[378680609,1754957446746,-467.26458395,0.00019451,2]
[378680611,1754957446756,-460.0,0.00019451,2]
[378680613,1754957446765,-460.0,0.00019451,2]
[378680615,1754957446775,-460.0,0.00019451,2]
[378680617,1754957446785,-460.0,0.00019451,2]
[378680620,1754957446796,-1127.59,0.00019451,2]
[378680622,1754957446806,-460.0,0.00019451,2]
[378680624,1754957446815,-460.0,0.00019451,2]
[378680626,1754957446825,-460.0,0.00019451,2]
[378680628,1754957446835,-460.0,0.00019451,2]
[378680630,1754957446844,-538.1,0.00019451,2]
[378680632,1754957446856,-586.22,0.00019451,2]
[378680634,1754957446865,-460.0,0.00019451,2]
[378680636,1754957446875,-460.0,0.00019451,2]
[378680638,1754957446885,-460.0,0.00019451,2]
[378680640,1754957446895,-1230.91,0.00019451,2]
[378680642,1754957446904,-460.0,0.00019451,2]
[378680644,1754957446914,-460.0,0.00019451,2]
[378680646,1754957446924,-460.0,0.00019451,2]
[378680648,1754957446934,-460.0,0.00019451,2]
[378680650,1754957446944,-460.0,0.00019451,2]
[378680652,1754957446955,-460.0,0.00019451,2]
[378680654,1754957446965,-460.0,0.00019451,2]
[378680656,1754957446974,-460.0,0.00019451,2]
[378680658,1754957446984,-460.0,0.00019451,2]
[378680660,1754957446994,-460.0,0.00019451,2]
[378680662,1754957447004,-460.0,0.00019451,2]
[378680664,1754957447014,-553.71,0.00019451,2]
[378680666,1754957447024,-573.36,0.00019451,2]
[378680668,1754957447034,-921.53,0.00019451,2]
[378680670,1754957447043,-470.91817191,0.00019451,2]
[378680672,1754957447053,-1617.0,0.00019451,2]
[378680674,1754957447063,-460.0,0.00019451,2]
[378680676,1754957447073,-460.0,0.00019451,2]
[378680678,1754957447083,-460.0,0.00019451,2]
[378680680,1754957447093,-460.0,0.00019451,2]
[378680682,1754957447103,-295.75302506,0.00019451,2]
[378680684,1754957447113,-460.0,0.00019451,2]
[378680686,1754957447123,-669.85,0.00019451,2]
[378680688,1754957447132,-504.26,0.00019451,2]
[378680690,1754957447142,-460.0,0.00019451,2]
[378680692,1754957447152,-460.0,0.00019451,2]
[378680694,1754957447161,-460.0,0.00019451,2]
[378680697,1754957447171,-865.17,0.00019451,2]
[378680699,1754957447181,-1060.54,0.00019451,2]
[378680701,1754957447190,-460.0,0.00019451,2]
[378680703,1754957447200,-750.5,0.00019451,2]
[378680705,1754957447211,-460.0,0.00019451,2]
[378680707,1754957447220,-1230.55,0.00019451,2]
[378680709,1754957447230,-460.0,0.00019451,2]
[378680711,1754957447240,-1266.5,0.00019451,2]
[378680713,1754957447250,-460.0,0.00019451,2]
[378680715,1754957447260,-460.0,0.00019451,2]
[378680717,1754957447270,-460.0,0.00019451,2]
[378680719,1754957447280,-460.0,0.00019451,2]
[378680721,1754957447290,-460.0,0.00019451,2]
[378680723,1754957447300,-925.07,0.00019451,2]
[378680725,1754957447309,-460.0,0.00019451,2]
[378680727,1754957447320,-860.76,0.00019451,2]
[378680729,1754957447330,-499.40042012,0.00019451,2]
[378680731,1754957447339,-460.0,0.00019451,2]
[378680733,1754957447350,-460.0,0.00019451,2]
[378680735,1754957447359,-460.0,0.00019451,2]
[378680737,1754957447369,-3004.5,0.00019451,2]
[378680739,1754957447379,-460.0,0.00019451,2]
[378680741,1754957447388,-318.50767335,0.00019451,2]
[378680743,1754957447398,-460.0,0.00019451,2]
[378680745,1754957447408,-460.0,0.00019451,2]
[378680747,1754957447418,-460.0,0.00019451,2]
[378680749,1754957447427,-484.78552915,0.00019451,2]
[378680750,1754957447437,-1091.35,0.00019451,2]
[378680751,1754957447446,-693.32,0.00019451,2]
[378680752,1754957447456,-574.2,0.00019451,2]
[378680753,1754957447466,-849.34,0.00019451,2]
[378680754,1754957447479,-460.0,0.00019451,2]
[378680755,1754957447489,-460.0,0.00019451,2]
[378680756,1754957447498,-460.0,0.00019451,2]
[378680757,1754957447508,-460.0,0.00019451,2]
[378680758,1754957447519,-460.0,0.00019451,2]
[378680759,1754957447529,-4007.47290967,0.00019451,2]
[378680760,1754957447778,-2113.35,0.00019451,2]
[378680761,1754957447824,-460.0,0.0001945,2]
[378680762,1754957447834,-2131.56992816,0.00019451,2]
[378680763,1754957447846,-3138.21816871,0.00019451,2]
[378680764,1754957448078,820.61201,0.00027,120]
[378680765,1754957448111,-460.0,0.00019177,2]
[378680766,1754957448122,-333.49899346,0.00019451,2]
[378680767,1754957448132,-460.0,0.00019451,2]
[378680768,1754957448142,-659.53,0.00019451,2]
[378680769,1754957448151,-1060.2,0.00019451,2]
[378680770,1754957448161,-684.42,0.00019451,2]
[378680771,1754957448172,-460.0,0.00019451,2]
[378680772,1754957448182,-460.0,0.00019451,2]
[378680773,1754957448191,-460.0,0.00019451,2]
[378680774,1754957448201,-262.48677597,0.00019451,2]
[378680775,1754957448211,-460.0,0.00019451,2]
[378680776,1754957448221,-460.0,0.00019451,2]
[378680777,1754957448231,-460.0,0.00019451,2]
[378680778,1754957448241,-460.0,0.00019451,2]
[378680779,1754957448250,-460.0,0.00019451,2]
[378680780,1754957448260,-533.45,0.00019451,2]
[378680781,1754957448270,-460.0,0.00019451,2]
[378680782,1754957448280,-460.0,0.00019451,2]
[378680783,1754957448289,-460.0,0.00019451,2]
[378680784,1754957448299,-460.0,0.00019451,2]
[378680785,1754957448308,-460.0,0.00019451,2]
[378680786,1754957448318,-460.0,0.00019451,2]
[378680787,1754957448328,-619.81,0.00019451,2]
[378680788,1754957448337,-460.0,0.00019451,2]
[378680789,1754957448346,-483.51,0.00019451,2]
[378680790,1754957448356,-460.0,0.00019451,2]
[378680791,1754957448365,-460.0,0.00019451,2]
[378680792,1754957448376,-2131.5,0.00019451,2]
[378680793,1754957448386,-460.0,0.00019451,2]
[378680794,1754957448395,-460.0,0.00019451,2]
[378680795,1754957448404,-460.0,0.00019451,2]
[378680796,1754957448414,-673.13,0.00019451,2]
[378680797,1754957448423,-1567.25,0.00019451,2]
[378680798,1754957448433,-460.0,0.00019451,2]
[378680799,1754957448443,-1619.71,0.00019451,2]
[378680800,1754957448453,-460.0,0.00019451,2]
[378680801,1754957448462,-460.0,0.00019451,2]
[378680802,1754957448472,-460.0,0.00019451,2]
[378680803,1754957448484,-460.0,0.00019451,2]
[378680804,1754957448494,-2103.23,0.00019451,2]
[378680805,1754957448503,-460.0,0.00019451,2]
[378680806,1754957448513,-460.0,0.00019451,2]
[378680807,1754957448523,-2723.57,0.00019451,2]
[378680808,1754957448533,-460.0,0.00019451,2]
[378680809,1754957448542,-893.88,0.00019451,2]
[378680810,1754957448553,-1211.61,0.00019451,2]
[378680811,1754957448749,-460.0,0.00019451,2]
[378680812,1754957448759,-460.0,0.00019451,2]
[378680813,1754957448768,-460.0,0.00019451,2]
[378680814,1754957448778,-556.65,0.00019451,2]
[378680815,1754957448787,-460.0,0.00019451,2]
[378680816,1754957448797,-1310.56423056,0.00019451,2]
[378680817,1754957449068,-460.0,0.00019177,2]
[378680818,1754957449078,-414.24576944,0.00019451,2]
[378680819,1754957449088,-460.0,0.00019451,2]
[378680820,1754957449098,-460.0,0.00019451,2]
[378680821,1754957449108,-460.0,0.00019451,2]
[378680822,1754957449118,-460.0,0.00019451,2]
[378680823,1754957449128,-460.0,0.00019451,2]
[378680824,1754957449137,-1935.65,0.00019451,2]
[378680825,1754957449147,-2036.44,0.00019451,2]
[378680826,1754957449157,-481.87,0.00019451,2]
[378680827,1754957449166,-460.0,0.00019451,2]
[378680828,1754957449175,-460.0,0.00019451,2]
[378680829,1754957449185,-460.0,0.00019451,2]
[378680830,1754957449194,-822.07,0.00019451,2]
[378680831,1754957449204,-838.35,0.00019451,2]
[378680832,1754957449213,-460.0,0.00019451,2]